bitfinex/quotes_BTCUSD_20251016
["timestamp","ask_amount","ask_price","bid_price","bid_amount"]
[1760644863881,0.35980642,108510.0,108490.0,0.00015012]
[1760644864129,0.34,108510.0,108490.0,0.00015012]
[1760644864349,5.0,108500.0,108490.0,0.00015012]
[1760644865031,5.20414083,108500.0,108490.0,0.00015012]
[1760644865285,5.54414083,108500.0,108490.0,0.00015012]
[1760644865980,5.57715431,108500.0,108490.0,0.00015012]
[1760644866208,5.62669608,108500.0,108490.0,0.00015012]
[1760644866432,5.61087481,108500.0,108490.0,0.00015012]
[1760644866661,5.56133304,108500.0,108490.0,0.00015012]
[1760644866898,5.57578991,108500.0,108490.0,0.00015012]
[1760644867129,5.56133304,108500.0,108490.0,0.00015012]
[1760644867358,5.56233304,108500.0,108490.0,0.00015012]
[1760644867590,5.61187656,108500.0,108490.0,0.00015012]
[1760644868266,5.56157864,108500.0,108490.0,0.00015012]
[1760644868758,5.56057864,108500.0,108490.0,0.00015012]
[1760644868984,5.54414083,108500.0,108490.0,0.00015012]
[1760644869214,5.36080904,108500.0,108490.0,0.00015012]
[1760644869491,0.02080904,108500.0,108490.0,0.00015012]
[1760644869739,0.341,108500.0,108490.0,0.00015012]
[1760644869978,0.001,108500.0,108490.0,0.00015012]
[1760644870225,0.18533179,108500.0,108490.0,0.00015012]
[1760644870421,5.57716864,108500.0,108490.0,0.00015012]
[1760644871158,5.61088131,108500.0,108490.0,0.00015012]
[1760644871613,5.54414083,108500.0,108490.0,0.00015012]
[1760644871841,5.54514083,108500.0,108490.0,0.00015012]
[1760644872080,5.57817063,108500.0,108490.0,0.00015012]
[1760644872305,5.62771415,108500.0,108490.0,0.00015012]
[1760644872748,5.57817063,108500.0,108490.0,0.00015012]
[1760644873712,5.62771415,108500.0,108490.0,0.00015012]
[1760644873948,5.64492137,108500.0,108490.0,0.00015012]
[1760644874211,5.62771415,108500.0,108490.0,0.00015012]
[1760644874438,5.64492772,108500.0,108490.0,0.00015012]
[1760644874660,5.61189792,108500.0,108490.0,0.00015012]
[1760644875563,5.44340853,108500.0,108490.0,0.00015012]
[1760644875755,5.39386501,108500.0,108490.0,0.00015012]
[1760644876054,5.5781968,108500.0,108490.0,0.00015012]
[1760644876511,5.5771968,108500.0,108490.0,0.00015012]
[1760644877619,5.61090144,108500.0,108490.0,0.00015012]
[1760644878243,5.56135792,108500.0,108490.0,0.00015012]
[1760644878459,5.56235792,108500.0,108490.0,0.00015012]
[1760644878674,5.61194842,108500.0,108490.0,0.00015012]
[1760644878881,5.42761663,108500.0,108490.0,0.00015012]
[1760644879088,5.59473192,108500.0,108490.0,0.00015012]
[1760644879290,5.41040013,108500.0,108490.0,0.00015012]
[1760644879496,5.61194794,108500.0,108490.0,0.00015012]
[1760644880795,5.59473192,108500.0,108490.0,0.00015012]
[1760644881258,5.61194944,108500.0,108490.0,0.00015012]
[1760644881680,5.56235835,108500.0,108490.0,0.00015012]
[1760644881887,5.61195157,108500.0,108490.0,0.00015012]
[1760644882325,5.61195279,108500.0,108490.0,0.00015012]
[1760644883396,5.56235835,108500.0,108490.0,0.00015012]
[1760644883608,5.61196236,108500.0,108490.0,0.00015012]
[1760644886205,5.56235835,108500.0,108490.0,0.00015012]
[1760644886448,5.37802656,108500.0,108490.0,0.00015012]
[1760644886703,0.6119955,108500.0,108490.0,0.00015012]
[1760644887196,5.37802656,108500.0,108490.0,0.00015012]
[1760644887438,5.42767723,108500.0,108490.0,0.00015012]
[1760644888189,5.37802656,108500.0,108490.0,0.00015012]
[1760644888430,0.41047618,108500.0,108490.0,0.00015012]
[1760644888919,0.4435852,108500.0,108490.0,0.00015012]
[1760644889169,0.1035852,108500.0,108490.0,0.00015012]
[1760644889423,0.02080904,108500.0,108490.0,0.51330942]
[1760644889675,0.02080904,108500.0,108490.0,0.00015012]
[1760644890346,0.01980904,108500.0,108490.0,0.01083597]
[1760644890576,0.01980904,108500.0,108490.0,0.00015012]
[1760644890793,0.01980904,108500.0,108490.0,0.01858499]
[1760644891450,0.01980904,108500.0,108490.0,0.20293377]
[1760644891654,0.01980904,108500.0,108490.0,0.00015012]
[1760644891861,0.01980904,108500.0,108490.0,0.01858499]
[1760644892246,0.01980904,108500.0,108490.0,0.01958499]
[1760644893420,0.01980904,108500.0,108490.0,0.20393377]
[1760644893641,0.01980904,108510.0,108490.0,0.68337753]
[1760644893820,0.04465459,108510.0,108490.0,0.68337753]
[1760644894045,0.04465459,108510.0,108500.0,0.49787863]
[1760644894254,0.01980904,108510.0,108490.0,0.68337753]
[1760644894609,0.01980904,108510.0,108500.0,0.01843317]
[1760644894883,0.04465459,108520.0,108500.0,0.70064359]
[1760644895068,0.01980904,108520.0,108510.0,0.49787863]
[1760644895393,0.04465459,108530.0,108500.0,0.59678533]
[1760644895585,0.04465459,108530.0,108500.0,0.78111623]
[1760644896046,0.43616034,108540.0,108500.0,0.78111623]
[1760644896268,0.04465459,108540.0,108510.0,0.51482937]
[1760644896477,0.38465459,108540.0,108510.0,0.49787863]
[1760644896685,0.38465459,108540.0,108520.0,0.0159405]
[1760644896888,0.36484555,108540.0,108520.0,0.0159405]
[1760644897309,0.35980904,108540.0,108520.0,0.0159405]
[1760644897517,0.34,108540.0,108520.0,0.0159405]
[1760644897923,0.34,108540.0,108510.0,0.49787863]
[1760644898547,0.34,108540.0,108510.0,0.56027662]
[1760644899389,0.34,108540.0,108510.0,0.84349567]
[1760644899603,0.34,108540.0,108520.0,0.79029391]
[1760644899817,0.34,108540.0,108520.0,0.77186413]
[1760644900039,0.34,108540.0,108520.0,0.08969012]
[1760644900259,0.34,108540.0,108520.0,0.58756875]
[1760644900468,0.34,108540.0,108520.0,0.08969012]
[1760644900680,0.34,108540.0,108510.0,0.49787863]
[1760644900886,0.53347865,108540.0,108510.0,0.08969012]
[1760644901095,0.54407349,108540.0,108510.0,0.08969012]
[1760644901325,0.34,108540.0,108510.0,0.08969012]
[1760644901533,0.34,108540.0,108510.0,0.86156454]
[1760644901739,0.34,108540.0,108510.0,0.67725083]
[1760644902354,0.34,108540.0,108510.0,0.86156522]
[1760644902592,0.34,108540.0,108510.0,0.87078096]
[1760644903205,0.34,108540.0,108520.0,0.01842978]
[1760644904245,0.34,108540.0,108520.0,0.10735085]
[1760644904445,0.34,108540.0,108520.0,0.51630841]
[1760644904589,0.34,108540.0,108520.0,0.49787863]
[1760644904786,0.34,108540.0,108530.0,0.01842808]
[1760644905013,0.34,108540.0,108520.0,0.01842978]
[1760644905213,0.00482311,108550.0,108520.0,0.70981692]
[1760644905551,0.00482311,108550.0,108530.0,0.68214998]
[1760644905741,0.00482311,108550.0,108540.0,0.01842638]
[1760644905906,0.00487311,108550.0,108540.0,0.01842638]
[1760644906110,0.00487311,108550.0,108540.0,0.20269024]
[1760644906327,0.00487311,108550.0,108530.0,0.68214998]
[1760644906534,0.00487311,108550.0,108540.0,0.01842638]
[1760644908164,0.00487311,108550.0,108530.0,0.08973012]
[1760644908383,0.00487311,108550.0,108530.0,0.58760875]
[1760644909645,0.00487311,108550.0,108530.0,0.08973012]
[1760644909843,0.00487311,108550.0,108530.0,4e-05]
[1760644910735,5.0,108550.0,108530.0,0.34004]
[1760644911097,5.0,108550.0,108530.0,0.42972208]
[1760644911483,5.19344519,108560.0,108530.0,0.42972208]
[1760644911686,0.21322327,108560.0,108530.0,0.4298722]
[1760644911890,5.0,108560.0,108530.0,0.4298722]
[1760644912118,0.20781607,108570.0,108530.0,0.4298722]
[1760644912323,0.18423006,108560.0,108530.0,0.0898722]
[1760644912532,5.0,108560.0,108530.0,0.0898722]
[1760644912745,0.01978225,108560.0,108530.0,0.0898722]
[1760644912958,0.18423701,108560.0,108530.0,0.0898722]
[1760644913164,5.18423588,108560.0,108530.0,0.0898722]
[1760644913368,0.20401813,108560.0,108530.0,0.0898722]
[1760644913570,0.18423588,108560.0,108530.0,0.0898722]
[1760644913836,0.22759832,108570.0,108530.0,0.0898722]
[1760644913987,5.0,108560.0,108530.0,0.0898722]
[1760644914183,0.01978225,108560.0,108530.0,0.0898722]
[1760644914390,0.20781607,108570.0,108530.0,0.0898722]
[1760644915619,0.18423023,108560.0,108530.0,0.0898722]
[1760644916002,0.18423023,108560.0,108530.0,0.00019012]
[1760644916205,5.0,108550.0,108530.0,0.00019012]
[1760644917222,0.01981922,108550.0,108530.0,0.00019012]
[1760644917563,0.19344479,108560.0,108530.0,0.00019012]
[1760644917931,5.0,108560.0,108530.0,0.00019012]
[1760644918132,0.01981922,108560.0,108530.0,0.00019012]
[1760644918358,5.0,108560.0,108530.0,0.00019012]
[1760644918553,5.01981922,108560.0,108530.0,0.00019012]
[1760644918759,0.01981922,108560.0,108530.0,0.00019012]
[1760644919104,0.18423098,108560.0,108530.0,0.00019012]
[1760644919277,0.20405028,108560.0,108530.0,0.00019012]
[1760644919424,0.01981922,108560.0,108530.0,0.49806875]
[1760644919634,5.0,108560.0,108540.0,0.25]
[1760644919871,0.01981922,108560.0,108540.0,0.25]
[1760644920077,0.59248313,108570.0,108550.0,0.01842468]
[1760644920232,5.0,108560.0,108550.0,0.01842468]
[1760644920440,0.01981922,108560.0,108540.0,0.25]
[1760644920636,0.07777379,108560.0,108540.0,0.25]
[1760644920836,0.07777379,108560.0,108540.0,0.33968208]
[1760644921092,0.04466477,108560.0,108540.0,0.33968208]
[1760644921523,0.04466477,108560.0,108540.0,0.52394592]
[1760644921718,0.04466477,108560.0,108550.0,0.01842468]
[1760644923084,0.07777379,108560.0,108550.0,0.01842468]
[1760644924069,0.07777379,108560.0,108540.0,0.25]
[1760644924212,0.02484975,108550.0,108540.0,0.25]
[1760644924420,0.04466897,108550.0,108540.0,0.25]
[1760644924770,0.01981922,108550.0,108540.0,0.49248084]
[1760644925227,0.01981922,108550.0,108540.0,1.11623187]
[1760644925430,0.02484975,108560.0,108550.0,0.22042917]
[1760644925431,0.01981922,108560.0,108550.0,0.22042917]
[1760644925607,0.0246415,108570.0,108560.0,0.18422991]
[1760644925823,0.0246415,108570.0,108560.0,0.95335039]
[1760644926026,0.0246415,108570.0,108560.0,1.16890487]
[1760644926232,0.00482228,108570.0,108560.0,1.16890487]
[1760644926999,0.00482228,108570.0,108560.0,0.51199973]
[1760644927189,0.00482228,108570.0,108560.0,1.26362487]
[1760644927539,0.01981922,108580.0,108560.0,1.26362487]
[1760644927697,0.01981922,108580.0,108570.0,0.20263424]
[1760644927888,0.01981922,108580.0,108570.0,0.18421295]
[1760644928100,0.38948729,108590.0,108580.0,0.18419598]
[1760644928827,0.0251378,108590.0,108580.0,0.18419598]
[1760644928986,0.0251378,108590.0,108580.0,0.27387806]
[1760644929212,0.0251378,108590.0,108570.0,0.95333343]
[1760644929414,0.0251378,108590.0,108580.0,0.01841959]
[1760644929619,0.0251378,108590.0,108580.0,0.20261557]
[1760644929812,0.0251378,108590.0,108580.0,0.18419598]
[1760644930018,0.00531858,108590.0,108580.0,0.18419598]
[1760644930440,0.0251378,108590.0,108580.0,0.18519598]
[1760644930646,0.00531858,108590.0,108580.0,0.18519598]
[1760644931518,0.00531858,108590.0,108580.0,1.0312638]
[1760644931695,0.00050026,108590.0,108580.0,1.12095392]
[1760644931893,0.00050026,108590.0,108580.0,1.2508162]
[1760644933320,0.00050026,108590.0,108580.0,1.5898162]
[1760644933689,0.00050026,108590.0,108580.0,1.5918162]
[1760644933869,0.00050026,108590.0,108580.0,1.5898162]
[1760644934289,0.00623346,108610.0,108600.0,0.95328254]
[1760644934458,0.0063835,108610.0,108600.0,1.13265474]
[1760644935462,0.0063835,108610.0,108600.0,1.16883702]
[1760644935668,0.0063835,108610.0,108600.0,1.13365474]
[1760644935865,0.0063835,108610.0,108600.0,1.16983702]
[1760644938777,0.0002,108620.0,108610.0,0.98944786]
[1760644939007,0.0002,108620.0,108610.0,1.26250006]
[1760644939669,0.0002,108620.0,108610.0,1.27924316]
[1760644939875,0.0002,108620.0,108610.0,1.18560316]
[1760644940055,0.0002,108620.0,108610.0,1.27924316]
[1760644940372,0.0002,108620.0,108610.0,1.28024316]
[1760644940580,0.0002,108620.0,108610.0,1.18660316]
[1760644940772,0.0002,108620.0,108610.0,0.98567496]
[1760644941006,0.0002,108620.0,108610.0,0.09069012]
[1760644941220,0.0002,108620.0,108610.0,0.001]
[1760644942506,0.0002,108620.0,108600.0,0.0184162]
[1760644942731,0.0002,108620.0,108610.0,0.001]
[1760644943146,0.0002,108620.0,108590.0,1.05614835]
[1760644943353,0.0002,108620.0,108590.0,1.23567059]
[1760644943772,0.0002,108620.0,108600.0,1.06138404]
[1760644943981,0.0002,108620.0,108600.0,1.04296784]
[1760644944186,0.0002,108620.0,108600.0,0.8588106]
[1760644944393,0.0002,108620.0,108600.0,0.08969012]
[1760644944618,0.0002,108620.0,108600.0,0.1793722]
[1760644944833,0.0002,108620.0,108600.0,0.36353346]
[1760644945728,0.0002,108620.0,108600.0,0.1793722]
[1760644946135,0.0002,108620.0,108600.0,0.36353398]
[1760644946542,0.0002,108620.0,108600.0,0.1793722]
[1760644946895,0.0002,108620.0,108600.0,0.08969012]
[1760644947522,0.0002,108620.0,108600.0,0.27384918]
[1760644948937,0.0002,108620.0,108600.0,1.04296966]
[1760644949177,0.00501813,108620.0,108600.0,1.04296966]
[1760644949549,0.00501813,108620.0,108610.0,0.97168009]
[1760644949819,0.00501813,108620.0,108610.0,1.13263778]
[1760644950023,0.00501813,108620.0,108610.0,1.22627778]
[1760644950236,0.0002,108620.0,108610.0,1.22627778]
[1760644950877,0.0002,108620.0,108610.0,1.22727778]
[1760644952673,0.0002,108620.0,108610.0,1.26346006]
[1760644954088,0.0002,108620.0,108610.0,1.60346006]
[1760644955962,0.0002,108620.0,108610.0,1.75116006]
[1760644956983,0.00481786,108640.0,108610.0,1.75116006]
[1760644957196,0.00041786,108640.0,108620.0,0.27381827]
[1760644957410,0.04765708,108650.0,108620.0,0.94849268]
[1760644957618,0.06740999,108650.0,108620.0,0.18329012]
[1760644957822,0.43210113,108650.0,108610.0,0.28402361]
[1760644958034,5.18409439,108640.0,108610.0,0.09069012]
[1760644958243,5.0,108630.0,108590.0,1.56599668]
[1760644958457,0.22855573,108630.0,108600.0,0.08969012]
[1760644958655,0.04444405,108630.0,108600.0,0.08969012]
[1760644958857,0.04444405,108630.0,108600.0,0.27384745]
[1760644958991,0.04444405,108630.0,108600.0,0.37273763]
[1760644959427,0.04444405,108630.0,108600.0,0.1793722]
[1760644960120,0.26166472,108630.0,108600.0,0.1793722]
[1760644960933,5.02469114,108620.0,108590.0,0.95344871]
[1760644961137,0.07755307,108620.0,108590.0,1.04313883]
[1760644961849,0.07755307,108620.0,108590.0,1.05234778]
[1760644962642,0.60168388,108620.0,108590.0,0.85896064]
[1760644962843,0.02469114,108610.0,108590.0,0.76927052]
[1760644963062,0.04444405,108610.0,108590.0,0.76927052]
[1760644963276,0.07755307,108610.0,108590.0,0.76927052]
[1760644963623,0.02469114,108600.0,108590.0,0.76927052]
[1760644963909,0.04444405,108600.0,108590.0,0.76927052]
[1760644964657,0.06145208,108600.0,108590.0,0.76927052]
[1760644965065,0.04444405,108600.0,108590.0,0.76927052]
[1760644965269,0.01975291,108600.0,108590.0,0.76927052]
[1760644965472,0.22860611,108600.0,108590.0,0.76927052]
[1760644965702,0.38444405,108600.0,108590.0,0.76927052]
[1760644966121,0.41755307,108600.0,108590.0,0.76927052]
[1760644966768,0.43452322,108600.0,108590.0,0.76927052]
[1760644967924,0.61868528,108600.0,108590.0,0.76927052]
[1760644968123,0.59399414,108600.0,108590.0,0.76927052]
[1760644968669,5.59399414,108600.0,108590.0,0.76927052]
[1760644970554,5.64366128,108600.0,108590.0,0.76927052]
[1760644970757,5.62774552,108600.0,108590.0,0.76927052]
[1760644971354,5.61055226,108600.0,108590.0,0.76927052]
[1760644972646,5.64353023,108600.0,108590.0,0.76927052]
[1760644973032,5.61055226,108600.0,108590.0,0.76927052]
[1760644973227,5.64351799,108600.0,108590.0,0.76927052]
[1760644973441,5.67970027,108600.0,108590.0,0.76927052]
[1760644973684,5.69160917,108600.0,108590.0,0.76927052]
[1760644974043,5.67443806,108600.0,108590.0,0.76927052]
[1760644974663,5.69160269,108600.0,108590.0,0.76927052]
[1760644974863,5.69260269,108600.0,108590.0,0.76927052]
[1760644976178,5.67543806,108600.0,108590.0,0.76927052]
[1760644977245,5.70835942,108600.0,108590.0,0.76927052]
[1760644977458,5.67543806,108600.0,108590.0,0.76927052]
[1760644977665,5.70835949,108600.0,108590.0,0.76927052]
[1760644977807,5.67543806,108600.0,108590.0,0.76927052]
[1760644977987,5.70835946,108600.0,108590.0,0.76927052]
[1760644978838,5.34860655,108600.0,108590.0,0.76927052]
[1760644979164,5.2907029,108600.0,108590.0,0.76927052]
[1760644980419,5.31607896,108600.0,108590.0,0.24346523]
[1760644980961,5.65507896,108600.0,108590.0,0.24346523]
[1760644981361,5.65607896,108600.0,108590.0,0.24346523]
[1760644981582,5.65507896,108600.0,108590.0,0.24346523]
[1760644981995,5.52421295,108570.0,108560.0,0.01839673]
[1760644982205,5.52426289,108570.0,108560.0,0.01839673]
[1760644982399,5.0,108550.0,108540.0,0.26839673]
[1760644982601,5.18424689,108550.0,108540.0,0.25]
[1760644983006,5.0,108550.0,108540.0,0.25]
[1760644983264,5.18424689,108550.0,108540.0,0.25]
[1760644983897,5.52424689,108550.0,108540.0,0.25]
[1760644984835,5.55196306,108550.0,108540.0,0.25]
[1760644985484,5.57664104,108550.0,108540.0,0.25]
[1760644986062,5.61282332,108550.0,108540.0,0.25]
[1760644987283,5.62997666,108550.0,108540.0,0.25]
[1760644988116,5.63822008,108550.0,108540.0,0.25]
[1760644988743,5.63822008,108550.0,108540.0,0.2436165]
[1760644988944,5.60529868,108550.0,108540.0,0.2436165]
[1760644989151,5.61975111,108550.0,108540.0,0.2436165]
[1760644989355,5.73986423,108550.0,108540.0,0.2436165]
[1760644990271,5.69048951,108550.0,108540.0,0.2436165]
[1760644990490,5.78858951,108550.0,108540.0,1e-08]
[1760644990667,5.78858951,108550.0,108530.0,4e-05]
[1760644990668,5.56044614,108540.0,108530.0,4e-05]
[1760644990932,5.59734868,108540.0,108530.0,4e-05]
[1760644991173,5.76050437,108540.0,108530.0,4e-05]
[1760644991419,5.77770285,108540.0,108530.0,4e-05]
[1760644991631,5.5243148,108510.0,108500.0,0.01839673]
[1760644991876,5.59411431,108510.0,108500.0,0.01839673]
[1760644992077,5.18434878,108490.0,108480.0,0.01879673]
[1760644992287,5.20409798,108490.0,108480.0,0.01879673]
[1760644992491,5.20409798,108490.0,108480.0,0.0004]
[1760644992910,5.23182991,108490.0,108480.0,0.00090026]
[1760644995106,5.24628758,108490.0,108480.0,0.00090026]
[1760644995339,5.62246986,108490.0,108480.0,0.00090026]
[1760644995562,5.64715033,108490.0,108480.0,0.00090026]
[1760644996674,5.62246986,108490.0,108480.0,0.00090026]
[1760644997122,5.58628758,108490.0,108480.0,0.00090026]
[1760644997342,5.62246986,108490.0,108480.0,0.00090026]
[1760644998277,5.43812108,108490.0,108480.0,0.00090026]
[1760644998472,5.4019388,108490.0,108480.0,0.00090026]
[1760644998705,5.57182991,108490.0,108480.0,0.00090026]
[1760645000197,5.38748113,108490.0,108480.0,0.00090026]
[1760645000405,5.57182991,108490.0,108480.0,0.00090026]
[1760645001087,5.59651038,108490.0,108480.0,0.00090026]
[1760645001338,5.57995038,108490.0,108480.0,0.00090026]
[1760645001547,5.55526991,108490.0,108480.0,0.00090026]
[1760645001776,5.56972778,108490.0,108480.0,0.00090026]
[1760645002238,5.60591006,108490.0,108480.0,0.00090026]
[1760645002466,5.63059053,108490.0,108480.0,0.00090026]
[1760645002943,5.68059708,108490.0,108480.0,0.00090026]
[1760645003346,5.65591966,108490.0,108480.0,0.00090026]
[1760645004175,5.70526512,108490.0,108480.0,0.00090026]
[1760645005194,5.70626512,108490.0,108480.0,0.00090026]
[1760645006348,5.75601028,108490.0,108480.0,0.00090026]
[1760645007170,5.70666482,108490.0,108480.0,0.00090026]
[1760645008014,5.52538575,108490.0,108480.0,0.00090026]
[1760645008374,5.53984623,108490.0,108480.0,0.00090026]
[1760645009215,5.4904943,108490.0,108480.0,0.00090026]
[1760645009913,5.53991602,108490.0,108480.0,0.00090026]
[1760645011255,5.4904943,108490.0,108480.0,0.00090026]
[1760645012308,0.34,108440.0,108430.0,0.01879673]
[1760645012536,0.34,108440.0,108430.0,0.01929752]
[1760645012751,0.34,108440.0,108430.0,0.00090079]
[1760645013206,5.37434278,108440.0,108430.0,0.00090079]
[1760645013421,5.42495549,108440.0,108430.0,0.00090079]
[1760645013638,5.44970065,108440.0,108430.0,0.00090079]
[1760645013848,5.46689473,108440.0,108430.0,0.00090079]
[1760645014055,5.28246095,108440.0,108430.0,0.00090079]
[1760645014254,5.26526687,108440.0,108430.0,0.00090079]
[1760645015121,5.44970065,108440.0,108430.0,0.00090079]
[1760645015897,5.46416444,108440.0,108430.0,0.00090079]
[1760645016719,5.48137898,108440.0,108430.0,0.00090079]
[1760645016984,5.48962736,108440.0,108430.0,0.00090079]
[1760645017987,5.32169036,108440.0,108430.0,0.00090079]
[1760645018188,5.50612414,108440.0,108430.0,0.00090079]
[1760645018398,5.32169036,108440.0,108430.0,0.00090079]
[1760645018817,5.50612414,108440.0,108430.0,0.00090079]
[1760645019455,5.50614452,108440.0,108430.0,0.00090079]
[1760645020526,5.32171074,108440.0,108430.0,0.00090079]
[1760645021627,0.50490516,108440.0,108430.0,0.00090079]
[1760645021838,0.45541484,108440.0,108430.0,0.00090079]
[1760645022038,0.44854163,108440.0,108430.0,0.00090079]
[1760645022249,0.07543821,108440.0,108430.0,0.00090079]
[1760645022460,0.10854163,108440.0,108430.0,0.00090079]
[1760645022683,0.07772476,108440.0,108430.0,0.18535158]
[1760645022887,0.01979584,108440.0,108430.0,0.18535158]
[1760645023095,0.01979584,108440.0,108430.0,0.22237264]
[1760645023779,0.01979584,108440.0,108430.0,0.18535158]
[1760645025049,0.01979584,108450.0,108430.0,0.18535158]
[1760645025259,0.04462134,108450.0,108430.0,0.18535158]
[1760645027164,4.849909,108450.0,108430.0,0.00090079]
[1760645027371,4.849909,108440.0,108430.0,0.00090079]
[1760645027846,5.05159333,108440.0,108430.0,0.00090079]
[1760645029119,5.39159333,108440.0,108430.0,0.00090079]
[1760645030181,5.20783233,108440.0,108430.0,0.00090079]
[1760645030753,5.2222965,108440.0,108430.0,0.00090079]
[1760645031324,5.25847878,108440.0,108430.0,0.00090079]
[1760645031547,5.3079691,108440.0,108430.0,0.00090079]
[1760645033183,5.25847878,108440.0,108430.0,0.00090079]
[1760645034490,5.2862242,108440.0,108430.0,0.00090079]
[1760645035562,5.33571452,108440.0,108430.0,0.00090079]
[1760645036483,5.2862242,108440.0,108430.0,0.00090079]
[1760645036923,5.25004192,108440.0,108430.0,0.00090079]
[1760645038401,0.01725055,108440.0,108430.0,0.00090079]
[1760645038608,0.34,108450.0,108430.0,0.00090079]
[1760645038807,0.35725737,108450.0,108430.0,0.00090079]
[1760645039008,0.03713889,108450.0,108430.0,0.00090079]
[1760645039233,0.37713889,108450.0,108430.0,0.00090079]
[1760645039580,0.22155648,108450.0,108430.0,0.00090079]
[1760645039781,0.56155648,108450.0,108430.0,0.00090079]
[1760645039954,0.37713889,108450.0,108430.0,0.00090079]
[1760645040704,0.56155691,108450.0,108430.0,0.00090079]
[1760645041122,0.37713889,108450.0,108430.0,0.00090079]
[1760645041332,0.56155733,108450.0,108430.0,0.00090079]
[1760645041543,0.37713889,108450.0,108430.0,0.00090079]
[1760645041750,0.56155577,108450.0,108430.0,0.00090079]
[1760645042163,0.56155927,108450.0,108430.0,0.00090079]
[1760645042545,0.18443378,108440.0,108430.0,0.00090079]
[1760645042751,4.8704633,108440.0,108430.0,0.00090079]
[1760645042967,4.93721669,108440.0,108430.0,0.00090079]
[1760645043195,4.98786556,108440.0,108430.0,0.00090079]
[1760645043400,5.01584445,108440.0,108430.0,0.00090079]
[1760645044362,4.96612053,108440.0,108430.0,0.00090079]
[1760645044564,5.03217622,108440.0,108430.0,0.00090079]
[1760645044965,5.22678107,108430.0,108420.0,0.0004]
[1760645045161,5.31365108,108430.0,108420.0,0.00055012]
[1760645045592,5.32998307,108430.0,108420.0,0.00055012]
[1760645046678,5.26392738,108430.0,108420.0,0.00055012]
[1760645046895,5.36102738,108430.0,108420.0,0.00055012]
[1760645047102,5.42708307,108430.0,108420.0,0.00055012]
[1760645047303,5.36102738,108430.0,108420.0,0.00055012]
[1760645047909,5.26392738,108430.0,108420.0,0.00055012]
[1760645048120,5.26391341,108430.0,108420.0,0.00055012]
[1760645048533,5.26391341,108430.0,108400.0,0.0004]
[1760645048534,5.3299691,108430.0,108400.0,0.0004]
[1760645048739,5.2268151,108410.0,108400.0,0.00045]
[1760645048942,5.26394744,108410.0,108400.0,0.00045]
[1760645049354,5.31362329,108410.0,108400.0,0.00045]
[1760645049973,5.33242002,108410.0,108400.0,0.00045]
[1760645051262,5.06207707,108410.0,108400.0,0.00045]
[1760645051465,5.22931107,108410.0,108400.0,0.00045]
[1760645051676,5.04482625,108410.0,108400.0,0.00045]
[1760645051884,5.22931107,108410.0,108400.0,0.00045]
[1760645054275,5.21051434,108410.0,108400.0,0.00045]
[1760645054481,5.26391973,108410.0,108400.0,0.00045]
[1760645054696,5.31359558,108410.0,108400.0,0.00045]
[1760645056452,5.07943491,108410.0,108400.0,0.00045]
[1760645056657,5.02602952,108410.0,108400.0,0.00045]
[1760645057301,5.21051434,108410.0,108400.0,0.00045]
[1760645058368,5.02602952,108410.0,108400.0,0.00045]
[1760645058589,5.21051434,108410.0,108400.0,0.00045]
[1760645062232,5.02602952,108410.0,108400.0,0.00045]
[1760645062661,5.24669662,108410.0,108400.0,0.00045]
[1760645062870,5.27977435,108410.0,108400.0,0.00045]
[1760645063097,5.2970134,108410.0,108400.0,0.00045]
[1760645063306,5.31361152,108410.0,108400.0,0.00045]
[1760645063520,5.42709136,108410.0,108400.0,0.00045]
[1760645063980,5.22684914,108390.0,108380.0,0.01233382]
[1760645064192,5.31362979,108390.0,108380.0,0.01248399]
[1760645064404,5.29707484,108390.0,108380.0,0.01248399]
[1760645064617,5.08604709,108390.0,108380.0,0.01248399]
[1760645064830,0.38679396,108390.0,108380.0,0.01248399]
[1760645065255,0.04679396,108390.0,108380.0,0.01248399]
[1760645065454,0.02691244,108390.0,108380.0,0.01248399]
[1760645065915,0.54438738,108400.0,108380.0,0.01248399]
[1760645066050,0.36665346,108390.0,108380.0,0.01248399]
[1760645066254,0.34,108390.0,108380.0,0.01248399]
[1760645066454,0.52451886,108390.0,108380.0,0.01248399]
[1760645066723,0.54440038,108390.0,108380.0,0.01248399]
[1760645066951,0.35988152,108390.0,108380.0,0.01248399]
[1760645067126,0.34,108390.0,108380.0,0.01248399]
[1760645067355,0.36642118,108390.0,108380.0,0.01248399]
[1760645067988,0.57082156,108390.0,108380.0,0.01248399]
[1760645068190,5.0358907,108390.0,108380.0,0.01248399]
[1760645068707,0.3697427,108390.0,108380.0,0.01248399]
[1760645068908,0.34986118,108390.0,108380.0,0.01248399]
[1760645069395,0.53438004,108390.0,108380.0,0.01248399]
[1760645069592,5.22040956,108390.0,108380.0,0.01248399]
[1760645072028,0.01988152,108390.0,108380.0,0.01248399]
[1760645072162,0.20438408,108400.0,108380.0,0.01248399]
[1760645072560,5.19066686,108390.0,108380.0,0.01248399]
[1760645072760,5.24365351,108390.0,108380.0,0.01248399]
[1760645073155,5.2874539,108390.0,108380.0,0.01248399]
[1760645073571,5.2874539,108390.0,108340.0,0.1938337]
[1760645073572,0.53376268,108380.0,108340.0,0.01839673]
[1760645073777,0.09368,108370.0,108340.0,0.20304754]
[1760645074284,0.09368,108370.0,108350.0,0.01845869]
[1760645074482,0.09368,108370.0,108350.0,0.19702375]
[1760645074713,0.09368,108370.0,108350.0,0.22427879]
[1760645074924,0.09368,108370.0,108350.0,0.20304482]
[1760645075393,0.09368,108370.0,108360.0,0.18456995]
[1760645075852,0.09368,108370.0,108350.0,0.19381547]
[1760645076105,0.09368,108370.0,108340.0,0.00927999]
[1760645076326,0.09368,108370.0,108340.0,0.19387169]
[1760645080138,0.34,108360.0,108340.0,4.979e-05]
[1760645080363,0.09368,108350.0,108340.0,4.979e-05]
[1760645081017,0.09368,108350.0,108340.0,0.18465381]
[1760645081631,0.09368,108350.0,108340.0,4.979e-05]
[1760645082203,0.01988152,108360.0,108340.0,4.979e-05]
[1760645082424,0.20443458,108370.0,108340.0,4.979e-05]
[1760645082625,0.20443458,108370.0,108340.0,0.18465352]
[1760645083049,4.7222118,108370.0,108340.0,0.18465352]
[1760645083252,0.0560638,108370.0,108340.0,0.18465352]
[1760645083439,0.22073578,108370.0,108340.0,0.18465352]
[1760645083789,0.0560638,108370.0,108340.0,0.19388372]
[1760645084008,0.01988152,108370.0,108350.0,0.1845838]
[1760645084216,0.57204719,108380.0,108340.0,0.23265608]
[1760645084418,0.34,108360.0,108340.0,0.19388372]
[1760645085280,0.34,108360.0,108350.0,0.18458698]
[1760645085486,0.34,108360.0,108340.0,0.19388372]
[1760645085909,0.35988152,108370.0,108340.0,0.19388372]
[1760645086094,0.34,108370.0,108340.0,0.19388372]
[1760645086329,0.64,108370.0,108340.0,0.19388372]
[1760645086552,0.84443883,108370.0,108340.0,0.1846524]
[1760645086754,0.65988152,108370.0,108340.0,0.1846524]